fUST/lending_fUST_20250605
["ID","MTS","AMOUNT","RATE_DAILY","PERIOD"]
[364485933,1749115847646,-500.0,0.0001987,2]
[364485934,1749115847655,-500.0,0.0001987,2]
[364485935,1749115847664,-500.0,0.0001987,2]
[364485936,1749115847675,-500.0,0.0001987,2]
[364485937,1749115847784,-500.0,0.0001987,2]
[364485938,1749115847795,-500.0,0.0001987,2]
[364485939,1749115847804,-500.0,0.0001987,2]
[364485940,1749115847813,-500.0,0.0001987,2]
[364485941,1749115847825,-500.0,0.0001987,2]
[364485942,1749115847834,-500.0,0.0001987,2]
[364485943,1749115847843,-500.0,0.0001987,2]
[364485944,1749115847852,-500.0,0.0001987,2]
[364485945,1749115847862,-500.0,0.0001987,2]
[364485946,1749115847871,-500.0,0.0001987,2]
[364485947,1749115847881,-500.0,0.0001987,2]
[364485948,1749115847890,-500.0,0.0001987,2]
[364485949,1749115847900,-500.0,0.0001987,2]
[364485950,1749115847909,-500.0,0.0001987,2]
[364485951,1749115847918,-500.0,0.0001987,2]
[364485952,1749115847927,-500.0,0.0001987,2]
[364485953,1749115847937,-500.0,0.0001987,2]
[364485954,1749115847946,-500.0,0.0001987,2]
[364485955,1749115847956,-590.26752982,0.0001987,2]
[364485956,1749115847966,-273.8903506,0.00019938,2]
[364485957,1749115847975,-151.0,0.0002,2]
[364485958,1749115847984,-151.0,0.0002,2]
[364485959,1749115847993,-151.0,0.0002,2]
[364485960,1749115848002,-151.0,0.0002,2]
[364485961,1749115848011,-295.714324,0.0002,2]
[364485962,1749115848021,-151.0,0.0002,2]
[364485963,1749115848030,-440.0,0.0002,2]
[364485964,1749115848040,-461.44,0.0002,2]
[364485965,1749115848049,-878.21,0.0002,2]
[364485966,1749115848059,-440.0,0.0002,2]
[364485967,1749115848069,-440.0,0.0002,2]
[364485968,1749115848079,-440.0,0.0002,2]
[364485969,1749115848088,-384.81903056,0.0002,2]
[364485970,1749115848098,-440.0,0.0002,2]
[364485971,1749115848108,-440.0,0.0002,2]
[364485972,1749115848118,-666.26,0.0002,2]
[364485973,1749115848127,-440.0,0.0002,2]
[364485974,1749115848137,-440.0,0.0002,2]
[364485975,1749115848147,-440.0,0.0002,2]
[364485976,1749115848156,-50.75583478,0.0002,2]
[364485977,1749115848275,-32765.92499698,0.0002,2]
[364485978,1749115848285,-440.0,0.0002,2]
[364485979,1749115848294,-440.0,0.0002,2]
[364485980,1749115848303,-430.0,0.0002,2]
[364485981,1749115848312,-440.0,0.0002,2]
[364485982,1749115848323,-1247.26,0.0002,2]
[364485983,1749115848332,-482.25,0.0002,2]
[364485984,1749115848342,-440.0,0.0002,2]
[364485985,1749115848351,-920.93,0.0002,2]
[364485986,1749115848361,-440.0,0.0002,2]
[364485987,1749115848370,-440.0,0.0002,2]
[364485988,1749115848381,-440.0,0.0002,2]
[364485989,1749115848389,-1100.0,0.00020068,2]
[364485990,1749115848398,-1000.0,0.00020154,5]
[364485991,1749115848407,-151.0,0.00020154,2]
[364485992,1749115848417,-151.0,0.00020154,2]
[364485993,1749115848427,-151.0,0.00020154,2]
[364485994,1749115848435,-151.0,0.00020154,2]
[364485995,1749115848445,-151.0,0.00020154,2]
[364485996,1749115848454,-216.258203,0.00020187,2]
[364485997,1749115848463,-440.0,0.00020273,2]
[364485998,1749115848472,-461.44,0.00020273,2]
[364485999,1749115848481,-878.21,0.00020273,2]
[364486000,1749115848491,-440.0,0.00020273,2]
[364486001,1749115848500,-440.0,0.00020273,2]
[364486002,1749115848509,-440.0,0.00020273,2]
[364486003,1749115848519,-279.0,0.00020273,2]
[364486004,1749115848528,-440.0,0.00020273,2]
[364486005,1749115848538,-666.26,0.00020273,2]
[364486006,1749115848547,-440.0,0.00020273,2]
[364486007,1749115848557,-440.0,0.00020273,2]
[364486008,1749115848566,-440.0,0.00020273,2]
[364486009,1749115848576,-440.0,0.00020273,2]
[364486010,1749115848585,-440.0,0.00020273,2]
[364486011,1749115848594,-440.0,0.00020273,2]
[364486012,1749115848604,-1247.26,0.00020273,2]
[364486013,1749115848613,-482.25,0.00020273,2]
[364486014,1749115848623,-440.0,0.00020273,2]
[364486015,1749115848633,-920.93,0.00020273,2]
[364486016,1749115848644,-440.0,0.00020273,2]
[364486017,1749115848653,-440.0,0.00020273,2]
[364486018,1749115848662,-440.0,0.00020273,2]
[364486019,1749115848671,-4379.67,0.00020324,2]
[364486020,1749115848682,-440.0,0.00020547,2]
[364486021,1749115848691,-461.44,0.00020547,2]
[364486022,1749115848700,-878.21,0.00020547,2]
[364486023,1749115848710,-440.0,0.00020547,2]
[364486024,1749115848719,-440.0,0.00020547,2]
[364486025,1749115848729,-440.0,0.00020547,2]
[364486026,1749115848738,-440.0,0.00020547,2]
[364486027,1749115848747,-666.26,0.00020547,2]
[364486028,1749115848757,-440.0,0.00020547,2]
[364486029,1749115848767,-440.0,0.00020547,2]
[364486030,1749115848777,-440.0,0.00020547,2]
[364486031,1749115848786,-440.0,0.00020547,2]
[364486032,1749115848795,-440.0,0.00020547,2]
[364486033,1749115848805,-440.0,0.00020547,2]
[364486034,1749115848814,-1247.26,0.00020547,2]
[364486035,1749115848824,-482.25,0.00020547,2]
[364486036,1749115848834,-440.0,0.00020547,2]
[364486037,1749115848843,-920.93,0.00020547,2]
[364486038,1749115848852,-440.0,0.00020547,2]
[364486039,1749115848862,-245.90021083,0.00020547,2]
[364486040,1749115848871,-440.0,0.00020547,2]
[364486041,1749115848880,-151.0,0.00020555,2]
[364486042,1749115848890,-1751.72449562,0.0002056,2]
[364486043,1749115848899,-160.0,0.00020586,3]
[364486044,1749115848908,-862.188069,0.00020673,3]
[364486045,1749115848917,-709.0,0.00020741,2]
[364486046,1749115848927,-2225.0,0.00020741,2]
[364486047,1749115848936,-495.415,0.00020741,2]
[364486048,1749115848945,-962.0,0.00020741,2]
[364486049,1749115848954,-273.8903506,0.00020779,2]
[364486050,1749115848963,-440.0,0.00020821,2]
[364486051,1749115848973,-461.44,0.00020821,2]
[364486052,1749115848982,-878.21,0.00020821,2]
[364486053,1749115848992,-440.0,0.00020821,2]
[364486054,1749115849001,-440.0,0.00020821,2]
[364486055,1749115849010,-306.16,0.00020821,2]
[364486056,1749115849020,-440.0,0.00020821,2]
[364486057,1749115849030,-666.26,0.00020821,2]
[364486058,1749115849039,-440.0,0.00020821,2]
[364486059,1749115849050,-440.0,0.00020821,2]
[364486060,1749115849060,-440.0,0.00020821,2]
[364486061,1749115849071,-440.0,0.00020821,2]
[364486062,1749115849080,-440.0,0.00020821,2]
[364486063,1749115849090,-440.0,0.00020821,2]
[364486064,1749115849100,-1247.26,0.00020821,2]
[364486065,1749115849110,-482.25,0.00020821,2]
[364486066,1749115849120,-538.29,0.00020821,2]
[364486067,1749115849129,-920.93,0.00020821,2]
[364486068,1749115849139,-440.0,0.00020821,2]
[364486069,1749115849148,-440.0,0.00020821,2]
[364486070,1749115849158,-151.0,0.000209,3]
[364486071,1749115849167,-151.0,0.0002092,2]
[364486072,1749115849177,-151.0,0.0002092,2]
[364486073,1749115849187,-151.0,0.0002092,2]
[364486074,1749115849197,-151.0,0.0002092,2]
[364486075,1749115849206,-306.0,0.00020932,2]
[364486076,1749115849216,-151.0,0.00020939,2]
[364486077,1749115849226,-151.0,0.00020986,2]
[364486078,1749115849235,-151.0,0.00020986,2]
[364486079,1749115849245,-151.0,0.00020986,2]
[364486080,1749115849254,-166.01542,0.00020986,2]
[364486081,1749115849264,-201.188472,0.00020986,2]
[364486082,1749115849273,-1000.09,0.00020996,3]
[364486083,1749115849282,-7000.0,0.00021,2]
[364486084,1749115849292,-151.0,0.00021,2]
[364486085,1749115849301,-151.0,0.00021,2]
[364486086,1749115849310,-151.0,0.00021,2]
[364486087,1749115849320,-151.0,0.00021,2]
[364486088,1749115849330,-20207.55854434,0.00021,2]
[364486089,1749115849339,-238.39776759,0.00021095,2]
[364486090,1749115849348,-440.0,0.00021095,2]
[364486091,1749115849357,-461.44,0.00021095,2]
[364486092,1749115849366,-878.21,0.00021095,2]
[364486093,1749115849377,-545.66,0.00021095,2]
[364486094,1749115849386,-440.0,0.00021095,2]
[364486095,1749115849396,-440.0,0.00021095,2]
[364486096,1749115849406,-666.26,0.00021095,2]
[364486097,1749115849415,-440.0,0.00021095,2]
[364486098,1749115849424,-440.0,0.00021095,2]
[364486099,1749115849433,-440.0,0.00021095,2]
[364486100,1749115849442,-440.0,0.00021095,2]
[364486101,1749115849453,-440.0,0.00021095,2]
[364486102,1749115849463,-440.0,0.00021095,2]
[364486103,1749115849472,-1247.26,0.00021095,2]
[364486104,1749115849481,-482.25,0.00021095,2]
[364486105,1749115849491,-920.93,0.00021095,2]
[364486106,1749115849499,-517.98,0.00021095,2]
[364486107,1749115849592,-440.0,0.00021095,2]
[364486108,1749115849602,-1100.0,0.00021164,2]
[364486109,1749115849611,-8000.0,0.00021198,3]
[364486110,1749115849620,-160.0,0.00021198,3]
[364486111,1749115849631,-12675.11581177,0.00021198,3]
[364486112,1749115849644,-842.5625,0.00021198,3]
[364486113,1749115849653,-151.0,0.00021198,2]
[364486114,1749115849663,-215.0738,0.00021239,2]
[364486115,1749115849672,-927.16171457,0.00021257,2]
[364486116,1749115849682,-160.00079428,0.0002126,2]
[364486117,1749115849691,-1675.693679,0.0002128,5]
[364486118,1749115849701,-503.49081708,0.00021285,2]
[364486119,1749115849711,-500.0,0.00021287,2]
[364486120,1749115849721,-500.0,0.00021287,2]
[364486121,1749115849730,-500.0,0.00021287,2]
[364486122,1749115849739,-500.0,0.00021287,2]
[364486123,1749115849749,-500.0,0.00021287,2]
[364486124,1749115849759,-519.70268838,0.00021287,2]
[364486125,1749115849768,-500.0,0.00021287,2]
[364486126,1749115849777,-502.75822396,0.00021287,2]
[364486127,1749115849786,-500.0,0.00021287,2]
[364486128,1749115849795,-600.0,0.00021287,2]
[364486129,1749115849804,-273.2,0.000213,2]
[364486130,1749115849813,-3000.0,0.000213,2]
[364486131,1749115849823,-151.0,0.000213,3]
[364486132,1749115849832,-1000.0,0.000213,5]
[364486133,1749115849841,-500.0,0.00021309,2]
[364486134,1749115849850,-3000.0,0.0002131,2]
[364486135,1749115849859,-416.886133,0.0002131,2]
[364486136,1749115849869,-416.886133,0.0002131,2]
[364486137,1749115849878,-151.0,0.0002131,2]
[364486138,1749115849887,-3000.0,0.0002132,2]
[364486139,1749115849896,-151.0,0.0002132,2]
[364486140,1749115849905,-1000.0,0.0002132,5]
[364486141,1749115849914,-151.0,0.0002132,2]
[364486142,1749115849923,-264.368459,0.0002132,2]
[364486143,1749115849932,-1751.72449562,0.00021328,2]
[364486144,1749115849942,-3000.0,0.0002133,2]
[364486145,1749115849951,-3000.0,0.0002134,2]
[364486146,1749115849960,-151.0,0.0002134,2]
[364486147,1749115849973,-218.010269,0.0002134,2]
[364486148,1749115849984,-151.0,0.0002134,2]
[364486149,1749115849994,-557.722886,0.0002134,2]
[364486150,1749115850003,-557.722886,0.0002134,2]
[364486151,1749115850013,-151.0,0.0002134,2]
[364486152,1749115850023,-166.20991,0.0002134,2]
[364486153,1749115850032,-151.0,0.0002134,2]
[364486154,1749115850042,-151.0,0.0002134,2]
[364486155,1749115850052,-1000.0,0.0002134,5]
[364486156,1749115850061,-155.149337,0.0002134,2]
[364486157,1749115850071,-151.0,0.0002134,2]
[364486158,1749115850081,-3000.0,0.0002135,2]
[364486159,1749115850090,-151.0,0.0002135,2]
[364486160,1749115850100,-265.012673,0.0002135,2]
[364486161,1749115850110,-164.688244,0.0002135,2]
[364486162,1749115850119,-151.0,0.0002135,2]
[364486163,1749115850128,-151.0,0.0002135,2]
[364486164,1749115850138,-151.0,0.0002135,2]
[364486165,1749115850147,-151.0,0.0002135,2]
[364486166,1749115850157,-10005.69310184,0.0002135,2]
[364486167,1749115850166,-151.0,0.0002135,2]
[364486168,1749115850176,-151.0,0.0002135,2]
[364486169,1749115850188,-226.061836,0.0002135,2]
[364486170,1749115850198,-151.0,0.0002135,2]
[364486171,1749115850207,-3000.0,0.0002136,2]
[364486172,1749115850217,-1000.0,0.0002136,5]
[364486173,1749115850226,-440.0,0.00021369,2]
[364486174,1749115850235,-181.1777114,0.00021369,2]
[364486175,1749115850379,-440.0,0.00018356,2]
[364486176,1749115850389,-100.44922407,0.0001863,2]
[364486177,1749115850401,-274.42086049,0.0001863,2]
[364486178,1749115850410,-280.2622886,0.00021369,2]
[364486179,1749115850419,-878.21,0.00021369,2]
[364486180,1749115850428,-440.0,0.00021369,2]
[364486181,1749115850438,-219.44302782,0.00021369,2]
[364486182,1749115850611,-440.0,0.00018356,2]
[364486183,1749115850624,-500.0,0.00018356,2]
[364486184,1749115850639,-440.0,0.0001863,2]
[364486185,1749115850651,-440.0,0.00018904,2]
[364486186,1749115850667,-440.0,0.00019178,2]
[364486187,1749115850682,-440.0,0.00019452,2]
[364486188,1749115850693,-220.55697218,0.00021369,2]
[364486189,1749115850705,-666.26,0.00021369,2]
[364486190,1749115850718,-440.0,0.00021369,2]
[364486191,1749115850731,-440.0,0.00021369,2]
[364486192,1749115850744,-288.476999,0.00021369,2]
[364486193,1749115850757,-440.0,0.00021369,2]
[364486194,1749115850772,-440.0,0.00021369,2]
[364486195,1749115850787,-440.0,0.00021369,2]
[364486196,1749115850800,-440.0,0.00021369,2]
[364486197,1749115850811,-1247.26,0.00021369,2]
[364486198,1749115850822,-482.25,0.00021369,2]
[364486199,1749115850834,-920.93,0.00021369,2]
[364486200,1749115850849,-440.0,0.00021369,2]
[364486201,1749115850862,-3000.0,0.0002137,2]
[364486202,1749115850873,-3000.0,0.0002138,2]
[364486203,1749115850886,-1000.0,0.0002138,5]
[364486204,1749115850899,-500.0,0.00021386,2]
[364486205,1749115850910,-3000.0,0.0002139,2]
[364486206,1749115850921,-160.00079428,0.00021397,2]
[364486207,1749115850934,-151.0,0.00021398,2]
[364486208,1749115850946,-321.31102092,0.00021399,2]
[364486209,1749115850957,-3000.0,0.000214,2]
[364486210,1749115850969,-2514.14,0.000214,2]
[364486211,1749115850980,-1000.0,0.000214,5]
[364486212,1749115850993,-151.0,0.00021409,2]
[364486213,1749115851005,-3000.0,0.0002141,2]
[364486214,1749115851016,-151.0,0.0002141,2]
[364486215,1749115851028,-151.0,0.0002141,2]
[364486216,1749115851041,-151.0,0.0002141,2]
[364486217,1749115851053,-151.0,0.0002141,2]
[364486218,1749115851065,-3000.0,0.0002142,2]
[364486219,1749115851078,-151.0,0.0002142,2]
[364486220,1749115851090,-151.0,0.0002142,2]
[364486221,1749115851102,-1000.0,0.0002142,5]
[364486222,1749115851114,-532.63024613,0.00021429,2]
[364486223,1749115851126,-501.09580603,0.00021429,2]
[364486224,1749115851138,-500.0,0.00021429,2]
[364486225,1749115851150,-3000.0,0.0002143,2]
[364486226,1749115851162,-3000.0,0.0002144,2]
[364486227,1749115851174,-1000.0,0.0002144,5]
[364486228,1749115851187,-3000.0,0.0002145,2]
[364486229,1749115851199,-3000.0,0.0002146,2]
[364486230,1749115851211,-1000.0,0.0002146,5]
[364486231,1749115851220,-790.98,0.00021468,2]
[364486232,1749115851230,-3000.0,0.0002147,2]
[364486233,1749115851239,-151.0,0.00021473,2]
[364486234,1749115851251,-151.0,0.00021473,2]
[364486235,1749115851262,-3000.0,0.0002148,2]
[364486236,1749115851272,-1000.0,0.0002148,5]
[364486237,1749115851281,-3000.0,0.0002149,2]
[364486238,1749115851290,-273.2,0.000215,2]
[364486239,1749115851300,-3000.0,0.000215,2]
[364486240,1749115851309,-189.263972,0.000215,2]
[364486241,1749115851319,-189.263972,0.000215,2]
[364486242,1749115851328,-151.0,0.000215,2]
[364486243,1749115851337,-151.0,0.000215,2]
[364486244,1749115851347,-180.507224,0.000215,2]
[364486245,1749115851357,-180.507224,0.000215,2]
[364486246,1749115851367,-155.90937,0.000215,2]
[364486247,1749115851377,-151.0,0.000215,2]
[364486248,1749115851387,-151.0,0.000215,2]
[364486249,1749115851397,-151.0,0.000215,2]
[364486250,1749115851407,-1000.0,0.000215,5]
[364486251,1749115851417,-151.0,0.000215,2]
[364486252,1749115851426,-416.886133,0.000215,2]
[364486253,1749115851435,-416.886133,0.000215,2]
[364486254,1749115851445,-151.0,0.000215,2]
[364486255,1749115851454,-182.977676,0.000215,2]
[364486256,1749115851463,-151.0,0.000215,2]
[364486257,1749115851473,-151.0,0.000215,2]
[364486258,1749115851483,-160.00079428,0.00021507,2]
[364486259,1749115851492,-3363.25703542,0.00021508,3]
[364486260,1749115851690,-422643.07299,0.00021509,2]
[364486261,1749115851700,-6080.97895102,0.0002151,2]
[364486262,1749115851710,-3000.0,0.0002151,2]
[364486263,1749115851719,-557.722886,0.0002151,2]
[364486264,1749115851728,-557.722886,0.0002151,2]
[364486265,1749115851737,-151.0,0.0002151,2]
[364486266,1749115851746,-151.0,0.0002151,2]
[364486267,1749115851756,-151.0,0.0002151,2]
[364486268,1749115851765,-3000.0,0.0002152,2]
[364486269,1749115851775,-151.0,0.0002152,2]
[364486270,1749115851784,-151.0,0.0002152,2]
[364486271,1749115851794,-151.0,0.0002152,2]
[364486272,1749115851803,-158.377826,0.0002152,2]
[364486273,1749115851813,-3000.0,0.0002153,2]
[364486274,1749115851824,-151.0,0.0002154,2]
[364486275,1749115851834,-3000.0,0.0002154,2]
[364486276,1749115851844,-3000.0,0.0002155,2]
[364486277,1749115851854,-3000.0,0.0002156,2]
[364486278,1749115851863,-790.98,0.00021568,2]
[364486279,1749115851872,-3000.0,0.0002157,2]
[364486280,1749115851882,-3000.0,0.0002158,2]
[364486281,1749115851891,-151.0,0.0002158,2]
[364486282,1749115851901,-151.0,0.0002158,2]
[364486283,1749115851911,-151.0,0.0002158,2]
[364486284,1749115851921,-151.0,0.00021582,2]
[364486285,1749115851930,-3000.0,0.0002159,2]
[364486286,1749115851940,-18731.16,0.000216,2]
[364486287,1749115851949,-3000.0,0.000216,2]
[364486288,1749115851959,-151.0,0.000216,2]
[364486289,1749115851969,-298.269605,0.000216,2]
[364486290,1749115851979,-298.269605,0.000216,2]
[364486291,1749115851988,-151.0,0.000216,2]
[364486292,1749115851997,-151.0,0.000216,4]
[364486293,1749115852006,-151.0,0.000216,2]
[364486294,1749115852016,-3000.0,0.0002161,2]
[364486295,1749115852025,-3000.0,0.0002162,2]
[364486296,1749115852035,-273.8903506,0.0002162,2]
[364486297,1749115852045,-3000.0,0.0002163,2]
[364486298,1749115852055,-3000.0,0.0002164,2]
[364486299,1749115852064,-440.0,0.00021643,2]
[364486300,1749115852077,-461.44,0.00021643,2]
[364486301,1749115852090,-878.21,0.00021643,2]
[364486302,1749115852100,-440.0,0.00021643,2]
[364486303,1749115852109,-666.26,0.00021643,2]
[364486304,1749115852119,-558.53,0.00021643,2]
[364486305,1749115852128,-542.76,0.00021643,2]
[364486306,1749115852138,-440.0,0.00021643,2]
[364486307,1749115852147,-440.0,0.00021643,2]
[364486308,1749115852157,-440.0,0.00021643,2]
[364486309,1749115852168,-554.77,0.00021643,2]
[364486310,1749115852178,-1247.26,0.00021643,2]
[364486311,1749115852188,-482.25,0.00021643,2]
[364486312,1749115852198,-920.93,0.00021643,2]
[364486313,1749115852207,-440.0,0.00021643,2]
[364486314,1749115852217,-160.00079428,0.00021644,2]
[364486315,1749115852227,-3000.0,0.0002165,2]
[364486316,1749115852237,-500.0,0.00021652,2]
[364486317,1749115852247,-500.0,0.00021652,2]
[364486318,1749115852256,-501.14564429,0.00021652,2]
[364486319,1749115852266,-3000.0,0.0002166,2]
[364486320,1749115852275,-790.98,0.00021668,2]
[364486321,1749115852284,-151.0,0.00021669,2]
[364486322,1749115852293,-3000.0,0.0002167,2]
[364486323,1749115852302,-189.263972,0.0002167,2]
[364486324,1749115852311,-189.263972,0.0002167,2]
[364486325,1749115852321,-151.0,0.0002167,2]
[364486326,1749115852331,-151.0,0.0002167,2]
[364486327,1749115852340,-180.507224,0.0002167,2]
[364486328,1749115852350,-180.507224,0.0002167,2]
[364486329,1749115852359,-155.90937,0.0002167,2]
[364486330,1749115852369,-151.0,0.0002167,2]
[364486331,1749115852379,-416.886133,0.0002167,2]
[364486332,1749115852389,-416.886133,0.0002167,2]
[364486333,1749115852398,-151.0,0.0002167,2]
[364486334,1749115852408,-151.0,0.0002168,2]
[364486335,1749115852418,-3000.0,0.0002168,2]
[364486336,1749115852427,-151.0,0.0002168,2]
[364486337,1749115852436,-151.0,0.0002168,2]
[364486338,1749115852446,-151.0,0.0002168,2]
[364486339,1749115852455,-151.0,0.0002168,2]
[364486340,1749115852465,-151.0,0.0002168,2]
[364486341,1749115852474,-3000.0,0.0002169,2]
[364486342,1749115852485,-3000.0,0.000217,2]
[364486343,1749115852494,-557.722886,0.000217,2]
[364486344,1749115852503,-557.722886,0.000217,2]
[364486345,1749115852513,-151.0,0.000217,2]
[364486346,1749115852522,-151.0,0.000217,2]
[364486347,1749115852532,-151.0,0.000217,2]
[364486348,1749115852542,-3000.0,0.0002171,2]
[364486349,1749115852552,-151.0,0.0002171,2]
[364486350,1749115852561,-163.081009,0.0002171,2]
[364486351,1749115852571,-151.0,0.0002171,2]
[364486352,1749115852581,-3000.0,0.0002172,2]
[364486353,1749115852590,-3000.0,0.0002173,2]
[364486354,1749115852600,-3988.688603,0.0002174,2]
[364486355,1749115852609,-500.0,0.00021752,2]
[364486356,1749115852618,-500.0,0.00021752,2]
[364486357,1749115852627,-500.0,0.00021752,2]
[364486358,1749115852640,-160.00079428,0.00021753,2]
[364486359,1749115852650,-151.0,0.00021762,2]
[364486360,1749115852660,-151.0,0.00021765,2]
[364486361,1749115852670,-211.039653,0.00021765,2]
[364486362,1749115852679,-790.98,0.00021768,2]
[364486363,1749115852692,-1000.0,0.000218,7]
[364486364,1749115852702,-1000.0,0.00021835,2]
[364486365,1749115852712,-504.42654874,0.00021835,2]
[364486366,1749115852722,-1000.0,0.00021835,2]
[364486367,1749115852732,-503.13665459,0.00021835,2]
[364486368,1749115852741,-504.67081318,0.00021835,2]
[364486369,1749115852750,-1006.27683546,0.00021835,2]
[364486370,1749115852759,-1200.0,0.00021835,2]
[364486371,1749115852769,-151.0,0.00021844,2]
[364486372,1749115852779,-790.98,0.00021868,2]
[364486373,1749115852788,-160.0,0.00021874,4]
[364486374,1749115852798,-557.722886,0.0002188,2]
[364486375,1749115852807,-557.722886,0.0002188,2]
[364486376,1749115852818,-151.0,0.0002188,2]
[364486377,1749115852827,-151.0,0.0002188,2]
[364486378,1749115852837,-252.56526,0.0002188,2]
[364486379,1749115852846,-151.0,0.0002188,2]
[364486380,1749115852855,-416.886133,0.0002188,2]
[364486381,1749115852864,-416.886133,0.0002188,2]
[364486382,1749115852873,-151.0,0.0002188,2]
[364486383,1749115852883,-5839.57,0.00021887,2]
[364486384,1749115852892,-160.00079428,0.0002189,2]
[364486385,1749115852902,-167.67824614,0.000219,2]
[364486386,1749115852911,-400.0,0.00021917,2]
[364486387,1749115852920,-400.0,0.00021917,2]
[364486388,1749115852931,-400.0,0.00021917,2]
[364486389,1749115852941,-400.0,0.00021917,2]
[364486390,1749115852951,-496.47,0.00021917,2]
[364486391,1749115852961,-440.0,0.00021917,2]
[364486392,1749115852970,-461.44,0.00021917,2]
[364486393,1749115852979,-878.21,0.00021917,2]
[364486394,1749115852987,-277.37592392,0.00021917,2]
[364486395,1749115852996,-666.26,0.00021917,2]
[364486396,1749115853006,-440.0,0.00021917,2]
[364486397,1749115853016,-440.0,0.00021917,2]
[364486398,1749115853025,-440.0,0.00021917,2]
[364486399,1749115853035,-1247.26,0.00021917,2]
[364486400,1749115853046,-482.25,0.00021917,2]
[364486401,1749115853056,-920.93,0.00021917,2]
[364486402,1749115853065,-440.0,0.00021917,2]
[364486403,1749115853074,-151.0,0.00021921,7]
[364486404,1749115853083,-503.2118004,0.00021934,2]
[364486405,1749115853092,-790.98,0.00021968,2]
[364486406,1749115853101,-571.22066946,0.00021973,2]
[364486407,1749115853110,-500.0,0.00021973,2]
[364486408,1749115853120,-505.73318035,0.00021973,2]
[364486409,1749115853130,-328.55184798,0.00021973,2]
[364486410,1749115853139,-500.0,0.00021973,2]
[364486411,1749115853149,-502.7778796,0.00021973,2]
[364486412,1749115853158,-500.0,0.00021973,2]
[364486413,1749115853169,-500.0,0.00021973,2]
[364486414,1749115853179,-500.0,0.00021973,2]
[364486415,1749115853188,-500.0,0.00021973,2]
[364486416,1749115853198,-152.084026,0.00021973,7]
[364486417,1749115853207,-1003.71372657,0.00021977,2]
[364486418,1749115853216,-1238.4534585,0.00022,2]
[364486419,1749115853226,-1000.0,0.00022,22]
[364486420,1749115853235,-7571.03685873,0.00022,2]
[364486421,1749115853244,-28148.98883579,0.00022,2]
[364486422,1749115853254,-3683.39,0.00022,7]
[364486423,1749115853263,-129800.08,0.00022,7]
[364486424,1749115853273,-158.60015691,0.00022,7]
[364486425,1749115853283,-151.0,0.00022,7]
[364486426,1749115853292,-151.0,0.00022,7]
[364486427,1749115853302,-151.0,0.00022,7]
[364486428,1749115853311,-151.0,0.00022,7]
[364486429,1749115853322,-151.0,0.00022,7]
[364486430,1749115853332,-151.0,0.00022,7]
[364486431,1749115853341,-151.0,0.00022,7]
[364486432,1749115853350,-151.0,0.00022,7]